fUSD/lending_fUSD_20250205
["ID","MTS","AMOUNT","RATE_DAILY","PERIOD"]
[351791055,1738788669616,-500.0,0.00010342,2]
[351791056,1738788669626,-500.0,0.00010342,2]
[351791057,1738788669636,-704.47,0.00010342,2]
[351791058,1738788669645,-500.0,0.00010342,2]
[351791059,1738788669655,-500.0,0.00010342,2]
[351791060,1738788669666,-196.74,0.00010342,2]
[351791061,1738788669676,-500.0,0.00010342,2]
[351791062,1738788669686,-703.54,0.00010342,2]
[351791063,1738788669695,-1483.74,0.00010342,2]
[351791064,1738788669705,-500.0,0.00010342,2]
[351791065,1738788669715,-500.0,0.00010342,2]
[351791066,1738788669725,-500.0,0.00010342,2]
[351791067,1738788669735,-500.0,0.00010342,2]
[351791068,1738788669745,-500.0,0.00010342,2]
[351791069,1738788669754,-634.58,0.00010342,2]
[351791070,1738788669767,-500.0,0.00010429,2]
[351791071,1738788669776,-151.62,0.00010429,2]
[351791072,1738788669786,-500.0,0.00010429,2]
[351791073,1738788669796,-255.47105073,0.00010429,2]
[351791074,1738788669806,-500.0,0.00010429,2]
[351791075,1738788669816,-500.0,0.00010429,2]
[351791076,1738788669826,-273.321346,0.00010429,2]
[351791077,1738788669836,-249.952365,0.00010429,2]
[351791078,1738788669846,-500.0,0.0001043,2]
[351791079,1738788669857,-500.0,0.0001043,2]
[351791080,1738788669866,-500.0,0.0001043,2]
[351791081,1738788669876,-500.0,0.0001043,2]
[351791082,1738788669886,-500.0,0.0001043,2]
[351791083,1738788669896,-500.0,0.0001043,2]
[351791084,1738788669908,-500.0,0.0001043,2]
[351791085,1738788669918,-500.0,0.0001043,2]
[351791086,1738788669928,-500.0,0.0001043,2]
[351791087,1738788669938,-561.68,0.0001043,2]
[351791088,1738788669948,-2730.35,0.0001043,2]
[351791089,1738788669957,-500.0,0.0001043,2]
[351791090,1738788669967,-500.0,0.0001043,2]
[351791091,1738788669977,-500.0,0.0001043,2]
[351791092,1738788669987,-657.37,0.0001043,2]
[351791093,1738788669997,-500.0,0.0001043,2]
[351791094,1738788670007,-500.0,0.0001043,2]
[351791095,1738788670022,-500.0,0.0001043,2]
[351791096,1738788670032,-600.53,0.0001043,2]
[351791097,1738788670042,-1000.0,0.0001043,2]
[351791098,1738788670051,-500.0,0.0001043,2]
[351791099,1738788670062,-500.0,0.0001043,2]
[351791100,1738788670072,-1018.62,0.0001043,2]
[351791101,1738788670082,-1265.94,0.0001043,2]
[351791102,1738788670092,-500.0,0.00010431,2]
[351791103,1738788670101,-500.0,0.00010431,2]
[351791104,1738788670111,-500.0,0.00010431,2]
[351791105,1738788670121,-500.0,0.00010431,2]
[351791106,1738788670131,-500.0,0.00010431,2]
[351791107,1738788670140,-500.0,0.00010431,2]
[351791108,1738788670150,-500.0,0.00010431,2]
[351791109,1738788670160,-500.0,0.00010431,2]
[351791110,1738788670170,-500.0,0.00010431,2]
[351791111,1738788670180,-202.53098013,0.00010431,2]
[351791112,1738788670189,-524.29,0.00010431,2]
[351791113,1738788670199,-500.0,0.00010431,2]
[351791114,1738788670209,-500.0,0.00010431,2]
[351791115,1738788670218,-500.0,0.00010431,2]
[351791116,1738788670228,-500.0,0.00010431,2]
[351791117,1738788670238,-500.0,0.00010431,2]
[351791118,1738788670249,-500.0,0.00010431,2]
[351791119,1738788670259,-500.0,0.00010431,2]
[351791120,1738788670273,-500.0,0.00010431,2]
[351791121,1738788670283,-201.87637077,0.00010431,2]
[351791122,1738788670292,-500.0,0.00010431,2]
[351791123,1738788670303,-500.0,0.00010431,2]
[351791124,1738788670313,-500.0,0.00010431,2]
[351791125,1738788670323,-500.0,0.00010431,2]
[351791126,1738788670334,-621.19,0.00010431,2]
[351791127,1738788670346,-500.0,0.00010431,2]
[351791128,1738788670356,-500.0,0.00010431,2]
[351791129,1738788670366,-500.0,0.00010431,2]
[351791130,1738788670376,-682.78,0.00010431,2]
[351791131,1738788670387,-500.0,0.00010431,2]
[351791132,1738788670397,-500.0,0.00010431,2]
[351791133,1738788670407,-500.0,0.00010431,2]
[351791134,1738788670416,-500.0,0.00010431,2]
[351791135,1738788670426,-500.0,0.00010431,2]
[351791136,1738788670436,-500.0,0.00010431,2]
[351791137,1738788670446,-411.90744639,0.00010431,2]
[351791138,1738788670456,-500.0,0.00010431,2]
[351791139,1738788670466,-500.0,0.00010431,2]
[351791140,1738788670476,-500.0,0.00010431,2]
[351791141,1738788670487,-500.0,0.00010431,2]
[351791142,1738788670498,-359.0,0.00010431,2]
[351791143,1738788670508,-500.0,0.00010431,2]
[351791144,1738788670521,-500.0,0.00010431,2]
[351791145,1738788670530,-500.0,0.00010431,2]
[351791146,1738788670541,-500.0,0.00010431,2]
[351791147,1738788670551,-500.0,0.00010431,2]
[351791148,1738788670561,-500.0,0.00010431,2]
[351791149,1738788670571,-500.0,0.00010431,2]
[351791150,1738788670580,-500.0,0.00010431,2]
[351791151,1738788670590,-500.0,0.00010431,2]
[351791152,1738788670600,-196.18,0.00010431,2]
[351791153,1738788670609,-500.0,0.00010431,2]
[351791154,1738788670619,-500.0,0.00010431,2]
[351791155,1738788670629,-500.0,0.00010431,2]
[351791156,1738788670639,-500.0,0.00010431,2]
[351791157,1738788670649,-500.0,0.00010431,2]
[351791158,1738788670659,-500.0,0.00010431,2]
[351791159,1738788670668,-500.0,0.00010431,2]
[351791160,1738788670678,-500.0,0.00010431,2]
[351791161,1738788670688,-539.04353385,0.00010431,2]
[351791162,1738788670699,-500.0,0.00010431,2]
[351791163,1738788670709,-500.0,0.00010431,2]
[351791164,1738788670719,-500.0,0.00010431,2]
[351791165,1738788670729,-500.0,0.00010431,2]
[351791166,1738788670739,-500.0,0.00010431,2]
[351791167,1738788670749,-500.0,0.00010431,2]
[351791168,1738788670759,-500.0,0.00010431,2]
[351791169,1738788670772,-500.0,0.00010431,2]
[351791170,1738788670782,-500.0,0.00010431,2]
[351791171,1738788670792,-364.06,0.00010431,2]
[351791172,1738788670802,-500.0,0.00010431,2]
[351791173,1738788670812,-179.1,0.00010431,2]
[351791174,1738788670822,-316.32,0.00010431,2]
[351791175,1738788670832,-197.02,0.00010431,2]
[351791176,1738788670842,-500.0,0.00010431,2]
[351791177,1738788670852,-500.0,0.00010431,2]
[351791178,1738788670862,-500.0,0.00010431,2]
[351791179,1738788670872,-589.11851818,0.00010431,2]
[351791180,1738788670882,-500.0,0.00010479,2]
[351791181,1738788670891,-273.321346,0.00010479,2]
[351791182,1738788670901,-249.952365,0.00010479,2]
[351791183,1738788670914,-500.0,0.00010479,2]
[351791184,1738788670924,-500.0,0.00010479,2]
[351791185,1738788670934,-796.36,0.00010479,2]
[351791186,1738788670945,-500.0,0.00010479,2]
[351791187,1738788670955,-500.0,0.00010479,2]
[351791188,1738788670965,-500.0,0.00010479,2]
[351791189,1738788670975,-833.21,0.00010479,2]
[351791190,1738788670985,-753.98,0.00010479,2]
[351791191,1738788670995,-1204.2,0.00010479,2]
[351791192,1738788671005,-500.0,0.00010479,2]
[351791193,1738788671017,-407.59047339,0.00010479,2]
[351791194,1738788671027,-621.72,0.00010479,2]
[351791195,1738788671044,-500.0,0.00010479,2]
[351791196,1738788671054,-1314.37,0.00010479,2]
[351791197,1738788671064,-591.21,0.00010479,2]
[351791198,1738788671074,-2207.43,0.00010479,2]
[351791199,1738788671083,-500.0,0.00010479,2]
[351791200,1738788671093,-500.0,0.00010479,2]
[351791201,1738788671102,-500.0,0.00010479,2]
[351791202,1738788671112,-673.4,0.00010479,2]
[351791203,1738788671121,-500.0,0.00010479,2]
[351791204,1738788671131,-521.28,0.00010479,2]
[351791205,1738788671140,-500.0,0.00010479,2]
[351791206,1738788671150,-500.0,0.00010479,2]
[351791207,1738788671159,-500.0,0.00010479,2]
[351791208,1738788671169,-500.0,0.00010479,2]
[351791209,1738788671179,-500.0,0.00010479,2]
[351791210,1738788671188,-527.29,0.00010479,2]
[351791211,1738788671198,-874.81,0.00010479,2]
[351791212,1738788671208,-696.0,0.00010479,2]
[351791213,1738788671217,-541.79,0.00010479,2]
[351791214,1738788671227,-500.0,0.00010479,2]
[351791215,1738788671236,-424.15,0.00010479,2]
[351791216,1738788671246,-989.57,0.00010479,2]
[351791217,1738788671258,-500.0,0.00010479,2]
[351791218,1738788671278,-500.0,0.00010479,2]
[351791219,1738788671288,-380.88,0.00010479,2]
[351791220,1738788671298,-500.0,0.00010479,2]
[351791221,1738788671308,-593.09,0.00010479,2]
[351791222,1738788671317,-599.83,0.00010479,2]
[351791223,1738788671327,-500.0,0.00010479,2]
[351791224,1738788671337,-500.0,0.00010479,2]
[351791225,1738788671347,-2084.07,0.00010479,2]
[351791226,1738788671358,-500.0,0.00010479,2]
[351791227,1738788671369,-500.0,0.00010479,2]
[351791228,1738788671381,-450.66,0.00010479,2]
[351791229,1738788671391,-704.47,0.00010479,2]
[351791230,1738788671402,-467.02,0.00010479,2]
[351791231,1738788671412,-500.0,0.00010479,2]
[351791232,1738788671421,-500.0,0.00010479,2]
[351791233,1738788671432,-703.54,0.00010479,2]
[351791234,1738788671442,-1483.74,0.00010479,2]
[351791235,1738788671452,-500.0,0.00010479,2]
[351791236,1738788671462,-500.0,0.00010479,2]
[351791237,1738788671472,-500.0,0.00010479,2]
[351791238,1738788671482,-500.0,0.00010479,2]
[351791239,1738788671492,-500.0,0.00010479,2]
[351791240,1738788671502,-634.58,0.00010479,2]
[351791241,1738788671513,-438.52,0.00010548,2]
[351791242,1738788671526,-300.0,0.00010548,2]
[351791243,1738788671536,-150.0,0.00010548,2]
[351791244,1738788671546,-500.0,0.00010566,2]
[351791245,1738788671556,-500.0,0.00010566,2]
[351791246,1738788671566,-151.78958756,0.00010566,2]
[351791247,1738788671575,-291.72055172,0.00010566,2]
[351791248,1738788671585,-273.321346,0.00010566,2]
[351791249,1738788671594,-249.952365,0.00010566,2]
[351791250,1738788671604,-500.0,0.00010567,2]
[351791251,1738788671614,-500.0,0.00010567,2]
[351791252,1738788671624,-500.0,0.00010567,2]
[351791253,1738788671634,-500.0,0.00010567,2]
[351791254,1738788671644,-500.0,0.00010567,2]
[351791255,1738788671653,-500.0,0.00010567,2]
[351791256,1738788671663,-500.0,0.00010567,2]
[351791257,1738788671673,-500.0,0.00010567,2]
[351791258,1738788671682,-500.0,0.00010567,2]
[351791259,1738788671692,-561.68,0.00010567,2]
[351791260,1738788671701,-2730.35,0.00010567,2]
[351791261,1738788671710,-500.0,0.00010567,2]
[351791262,1738788671720,-500.0,0.00010567,2]
[351791263,1738788671729,-500.0,0.00010567,2]
[351791264,1738788671739,-657.37,0.00010567,2]
[351791265,1738788671748,-500.0,0.00010567,2]
[351791266,1738788671758,-500.0,0.00010567,2]
[351791267,1738788671772,-500.0,0.00010567,2]
[351791268,1738788671782,-600.53,0.00010567,2]
[351791269,1738788671792,-1000.0,0.00010567,2]
[351791270,1738788671801,-500.0,0.00010567,2]
[351791271,1738788671811,-500.0,0.00010567,2]
[351791272,1738788671820,-1018.62,0.00010567,2]
[351791273,1738788671829,-500.0,0.00010568,2]
[351791274,1738788671839,-277.88105823,0.00010568,2]
[351791275,1738788671848,-500.0,0.00010568,2]
[351791276,1738788671858,-500.0,0.00010568,2]
[351791277,1738788671868,-500.0,0.00010568,2]
[351791278,1738788671877,-569.39627339,0.00010568,2]
[351791279,1738788671887,-500.0,0.00010568,2]
[351791280,1738788671897,-500.0,0.00010568,2]
[351791281,1738788671909,-500.0,0.00010568,2]
[351791282,1738788671919,-500.0,0.00010568,2]
[351791283,1738788671929,-500.0,0.00010568,2]
[351791284,1738788671938,-500.0,0.00010568,2]
[351791285,1738788671949,-500.0,0.00010568,2]
[351791286,1738788671959,-500.0,0.00010568,2]
[351791287,1738788671968,-500.0,0.00010568,2]
[351791288,1738788671978,-238.22650872,0.00010568,2]
[351791289,1738788671990,-500.0,0.00010568,2]
[351791290,1738788671999,-500.0,0.00010568,2]
[351791291,1738788672009,-500.0,0.00010568,2]
[351791292,1738788672023,-500.0,0.00010568,2]
[351791293,1738788672032,-500.0,0.00010568,2]
[351791294,1738788672042,-500.0,0.00010568,2]
[351791295,1738788672052,-377.54233178,0.00010568,2]
[351791296,1738788672061,-682.78,0.00010568,2]
[351791297,1738788672200,-500.0,0.00010568,2]
[351791298,1738788672216,-500.0,0.00010568,2]
[351791299,1738788672226,-500.0,0.00010568,2]
[351791300,1738788672236,-622.06164141,0.00010568,2]
[351791301,1738788672245,-500.0,0.00010568,2]
[351791302,1738788672254,-500.0,0.00010568,2]
[351791303,1738788672265,-500.0,0.00010568,2]
[351791304,1738788672274,-500.0,0.00010568,2]
[351791305,1738788672284,-454.94,0.00010568,2]
[351791306,1738788672294,-500.0,0.00010568,2]
[351791307,1738788672305,-500.0,0.00010568,2]
[351791308,1738788672315,-562.35,0.00010568,2]
[351791309,1738788672324,-500.0,0.00010568,2]
[351791310,1738788672334,-500.0,0.00010568,2]
[351791311,1738788672343,-500.0,0.00010568,2]
[351791312,1738788672352,-500.0,0.00010568,2]
[351791313,1738788672362,-500.0,0.00010568,2]
[351791314,1738788672371,-500.0,0.00010568,2]
[351791315,1738788672381,-343.20458682,0.00010568,2]
[351791316,1738788672390,-500.0,0.00010568,2]
[351791317,1738788672399,-500.0,0.00010568,2]
[351791318,1738788672410,-401.84,0.00010568,2]
[351791319,1738788672424,-186.17996793,0.00010568,2]
[351791320,1738788672433,-500.0,0.00010568,2]
[351791321,1738788672443,-500.0,0.00010568,2]
[351791322,1738788672453,-500.0,0.00010568,2]
[351791323,1738788672463,-500.0,0.00010568,2]
[351791324,1738788672473,-500.0,0.00010568,2]
[351791325,1738788672483,-500.0,0.00010568,2]
[351791326,1738788672493,-500.0,0.00010568,2]
[351791327,1738788672502,-500.0,0.00010568,2]
[351791328,1738788672512,-500.0,0.00010568,2]
[351791329,1738788672522,-187.9449076,0.00010568,2]
[351791330,1738788672532,-439.4,0.00010568,2]
[351791331,1738788672541,-520.26,0.00010568,2]
[351791332,1738788672550,-500.0,0.00010568,2]
[351791333,1738788672559,-500.0,0.00010568,2]
[351791334,1738788672569,-494.4,0.00010568,2]
[351791335,1738788672579,-546.56864157,0.00010568,2]
[351791336,1738788672588,-500.0,0.00010569,2]
[351791337,1738788672597,-500.0,0.00010569,2]
[351791338,1738788672607,-521.43,0.00010569,2]
[351791339,1738788672616,-500.0,0.00010569,2]
[351791340,1738788672625,-500.0,0.00010569,2]
[351791341,1738788672634,-500.0,0.00010569,2]
[351791342,1738788672644,-500.0,0.00010616,2]
[351791343,1738788672653,-273.321346,0.00010616,2]
[351791344,1738788672663,-249.952365,0.00010616,2]
[351791345,1738788672672,-453.78929548,0.00010616,2]
[351791346,1738788672683,-500.0,0.00010616,2]
[351791347,1738788672692,-796.36,0.00010616,2]
[351791348,1738788672702,-500.0,0.00010616,2]
[351791349,1738788672711,-500.0,0.00010616,2]
[351791350,1738788672720,-500.0,0.00010616,2]
[351791351,1738788672730,-833.21,0.00010616,2]
[351791352,1738788672739,-753.98,0.00010616,2]
[351791353,1738788672749,-1204.2,0.00010616,2]
[351791354,1738788672759,-500.0,0.00010616,2]
[351791355,1738788672770,-621.72,0.00010616,2]
[351791356,1738788672780,-500.0,0.00010616,2]
[351791357,1738788672790,-1314.37,0.00010616,2]
[351791358,1738788672799,-591.21,0.00010616,2]
[351791359,1738788672809,-2207.43,0.00010616,2]
[351791360,1738788672819,-500.0,0.00010616,2]
[351791361,1738788672829,-163.38,0.00010616,2]
[351791362,1738788672838,-500.0,0.00010616,2]
[351791363,1738788672848,-673.4,0.00010616,2]
[351791364,1738788672857,-500.0,0.00010616,2]
[351791365,1738788672867,-521.28,0.00010616,2]
[351791366,1738788672876,-500.0,0.00010616,2]
[351791367,1738788672886,-500.0,0.00010616,2]
[351791368,1738788672896,-500.0,0.00010616,2]
[351791369,1738788672906,-500.0,0.00010616,2]
[351791370,1738788672918,-500.0,0.00010616,2]
[351791371,1738788672927,-527.29,0.00010616,2]
[351791372,1738788672937,-874.81,0.00010616,2]
[351791373,1738788672947,-696.0,0.00010616,2]
[351791374,1738788672956,-541.79,0.00010616,2]
[351791375,1738788672965,-500.0,0.00010616,2]
[351791376,1738788672975,-989.57,0.00010616,2]
[351791377,1738788672987,-500.0,0.00010616,2]
[351791378,1738788672996,-500.0,0.00010616,2]
[351791379,1738788673005,-500.0,0.00010616,2]
[351791380,1738788673015,-593.09,0.00010616,2]
[351791381,1738788673024,-599.83,0.00010616,2]
[351791382,1738788673035,-500.0,0.00010616,2]
[351791383,1738788673044,-500.0,0.00010616,2]
[351791384,1738788673054,-2084.07,0.00010616,2]
[351791385,1738788673063,-557.54,0.00010616,2]
[351791386,1738788673073,-500.0,0.00010616,2]
[351791387,1738788673084,-704.47,0.00010616,2]
[351791388,1738788673093,-500.0,0.00010616,2]
[351791389,1738788673103,-500.0,0.00010616,2]
[351791390,1738788673112,-703.54,0.00010616,2]
[351791391,1738788673122,-1483.74,0.00010616,2]
[351791392,1738788673131,-500.0,0.00010616,2]
[351791393,1738788673140,-500.0,0.00010616,2]
[351791394,1738788673150,-500.0,0.00010616,2]
[351791395,1738788673159,-500.0,0.00010616,2]
[351791396,1738788673169,-523.08,0.00010616,2]
[351791397,1738788673178,-634.58,0.00010616,2]
[351791398,1738788673187,-1000.0,0.00010642,2]
[351791399,1738788673196,-587.34,0.00010703,2]
[351791400,1738788673206,-209.16,0.00010703,2]
[351791401,1738788673215,-273.321346,0.00010703,2]
[351791402,1738788673224,-249.952365,0.00010703,2]
[351791403,1738788673234,-500.0,0.00010704,2]
[351791404,1738788673243,-500.0,0.00010704,2]
[351791405,1738788673253,-500.0,0.00010704,2]
[351791406,1738788673263,-426.5869956,0.00010704,2]
[351791407,1738788673274,-500.0,0.00010704,2]
[351791408,1738788673283,-500.0,0.00010704,2]
[351791409,1738788673292,-500.0,0.00010704,2]
[351791410,1738788673301,-500.0,0.00010704,2]
[351791411,1738788673311,-500.0,0.00010704,2]
[351791412,1738788673320,-561.68,0.00010704,2]
[351791413,1738788673330,-2730.35,0.00010704,2]
[351791414,1738788673340,-500.0,0.00010704,2]
[351791415,1738788673350,-500.0,0.00010704,2]
[351791416,1738788673359,-500.0,0.00010704,2]
[351791417,1738788673369,-657.37,0.00010704,2]
[351791418,1738788673379,-500.0,0.00010704,2]
[351791419,1738788673389,-500.0,0.00010704,2]
[351791420,1738788673398,-500.0,0.00010704,2]
[351791421,1738788673408,-600.53,0.00010704,2]
[351791422,1738788673418,-1000.0,0.00010704,2]
[351791423,1738788673428,-500.0,0.00010704,2]
[351791424,1738788673438,-500.0,0.00010704,2]
[351791425,1738788673448,-1018.62,0.00010704,2]
[351791426,1738788673458,-193.53,0.00010705,2]
[351791427,1738788673467,-500.0,0.00010705,2]
[351791428,1738788673477,-500.0,0.00010705,2]
[351791429,1738788673487,-500.0,0.00010705,2]
[351791430,1738788673496,-500.0,0.00010705,2]
[351791431,1738788673507,-500.0,0.00010705,2]
[351791432,1738788673518,-212.18,0.00010705,2]
[351791433,1738788673527,-469.7,0.00010705,2]
[351791434,1738788673537,-500.0,0.00010705,2]
[351791435,1738788673546,-500.0,0.00010705,2]
[351791436,1738788673556,-500.0,0.00010705,2]
[351791437,1738788673566,-266.75,0.00010705,2]
[351791438,1738788673575,-500.0,0.00010705,2]
[351791439,1738788673585,-500.0,0.00010705,2]
[351791440,1738788673594,-500.0,0.00010705,2]
[351791441,1738788673603,-472.86,0.00010705,2]
[351791442,1738788673612,-500.0,0.00010705,2]
[351791443,1738788673622,-500.0,0.00010705,2]
[351791444,1738788673631,-682.78,0.00010705,2]
[351791445,1738788673641,-500.0,0.00010705,2]
[351791446,1738788673650,-500.0,0.00010705,2]
[351791447,1738788673660,-590.18,0.00010705,2]
[351791448,1738788673670,-500.0,0.00010705,2]
[351791449,1738788673679,-500.0,0.00010705,2]
[351791450,1738788673689,-500.0,0.00010705,2]
[351791451,1738788673699,-500.0,0.00010705,2]
[351791452,1738788673708,-500.0,0.00010705,2]
[351791453,1738788673718,-536.42,0.00010705,2]
[351791454,1738788673727,-500.0,0.00010705,2]
[351791455,1738788673737,-500.0,0.00010705,2]
[351791456,1738788673746,-500.0,0.00010705,2]
[351791457,1738788673756,-500.0,0.00010705,2]
[351791458,1738788673766,-500.0,0.00010705,2]
[351791459,1738788673776,-500.0,0.00010705,2]
[351791460,1738788673786,-500.0,0.00010705,2]
[351791461,1738788673796,-500.0,0.00010705,2]
[351791462,1738788673806,-314.54308011,0.00010705,2]
[351791463,1738788673816,-500.0,0.00010705,2]
[351791464,1738788673826,-452.08522758,0.00010705,2]
[351791465,1738788673836,-500.0,0.00010705,2]
[351791466,1738788673846,-500.0,0.00010705,2]
[351791467,1738788673856,-500.0,0.00010705,2]
[351791468,1738788673865,-500.0,0.00010705,2]
[351791469,1738788673875,-500.0,0.00010705,2]
[351791470,1738788673884,-198.95574979,0.00010705,2]
[351791471,1738788673893,-251.79652312,0.00010705,2]
[351791472,1738788673907,-500.0,0.00010705,2]
[351791473,1738788673916,-500.0,0.00010706,2]
[351791474,1738788673925,-500.0,0.00010706,2]
[351791475,1738788673934,-500.0,0.00010706,2]
[351791476,1738788673946,-297.70367461,0.00010706,2]
[351791477,1738788673956,-500.0,0.00010706,2]
[351791478,1738788673966,-3222.38588231,0.00010743,2]
[351791479,1738788673977,-500.0,0.00010753,2]
[351791480,1738788673986,-273.321346,0.00010753,2]
[351791481,1738788673995,-249.952365,0.00010753,2]
[351791482,1738788674004,-500.0,0.00010753,2]
[351791483,1738788674014,-796.36,0.00010753,2]
[351791484,1738788674026,-500.0,0.00010753,2]
[351791485,1738788674036,-500.0,0.00010753,2]
[351791486,1738788674045,-500.0,0.00010753,2]
[351791487,1738788674054,-833.21,0.00010753,2]
[351791488,1738788674063,-753.98,0.00010753,2]
[351791489,1738788674072,-1204.2,0.00010753,2]
[351791490,1738788674082,-500.0,0.00010753,2]
[351791491,1738788674091,-621.72,0.00010753,2]
[351791492,1738788674101,-500.0,0.00010753,2]
[351791493,1738788674111,-1314.37,0.00010753,2]
[351791494,1738788674120,-591.21,0.00010753,2]
[351791495,1738788674130,-2207.43,0.00010753,2]
[351791496,1738788674139,-500.0,0.00010753,2]
[351791497,1738788674149,-500.0,0.00010753,2]
[351791498,1738788674158,-673.4,0.00010753,2]
[351791499,1738788674168,-425.44,0.00010753,2]
[351791500,1738788674177,-521.28,0.00010753,2]
[351791501,1738788674187,-500.0,0.00010753,2]
[351791502,1738788674197,-500.0,0.00010753,2]
[351791503,1738788674206,-500.0,0.00010753,2]
[351791504,1738788674216,-500.0,0.00010753,2]
[351791505,1738788674225,-500.0,0.00010753,2]
[351791506,1738788674235,-527.29,0.00010753,2]
[351791507,1738788674245,-874.81,0.00010753,2]
[351791508,1738788674255,-696.0,0.00010753,2]
[351791509,1738788674264,-541.79,0.00010753,2]
[351791510,1738788674274,-425.4,0.00010753,2]
[351791511,1738788674284,-989.57,0.00010753,2]
[351791512,1738788674294,-500.0,0.00010753,2]
[351791513,1738788674304,-451.94,0.00010753,2]
[351791514,1738788674314,-500.0,0.00010753,2]
[351791515,1738788674324,-593.09,0.00010753,2]
[351791516,1738788674333,-599.83,0.00010753,2]
[351791517,1738788674343,-500.0,0.00010753,2]
[351791518,1738788674352,-374.28,0.00010753,2]
[351791519,1738788674362,-2084.07,0.00010753,2]
[351791520,1738788674371,-500.0,0.00010753,2]
[351791521,1738788674382,-704.47,0.00010753,2]
[351791522,1738788674391,-500.0,0.00010753,2]
[351791523,1738788674402,-500.0,0.00010753,2]
[351791524,1738788674412,-703.54,0.00010753,2]
[351791525,1738788674422,-1483.74,0.00010753,2]
[351791526,1738788674432,-500.0,0.00010753,2]
[351791527,1738788674442,-447.66,0.00010753,2]
[351791528,1738788674452,-500.0,0.00010753,2]
[351791529,1738788674461,-500.0,0.00010753,2]
[351791530,1738788674471,-634.58,0.00010753,2]
[351791531,1738788674483,-159.98,0.00010773,2]
[351791532,1738788674492,-273.321346,0.0001084,2]
[351791533,1738788674502,-249.952365,0.0001084,2]
[351791534,1738788674513,-500.0,0.00010841,2]
[351791535,1738788674525,-500.0,0.00010841,2]
[351791536,1738788674535,-500.0,0.00010841,2]
[351791537,1738788674546,-500.0,0.00010841,2]
[351791538,1738788674556,-500.0,0.00010841,2]
[351791539,1738788674566,-500.0,0.00010841,2]
[351791540,1738788674576,-500.0,0.00010841,2]
[351791541,1738788674586,-500.0,0.00010841,2]
[351791542,1738788674597,-561.68,0.00010841,2]
[351791543,1738788674607,-2730.35,0.00010841,2]
[351791544,1738788674617,-500.0,0.00010841,2]
[351791545,1738788674627,-500.0,0.00010841,2]
[351791546,1738788674636,-500.0,0.00010841,2]
[351791547,1738788674646,-657.37,0.00010841,2]
[351791548,1738788674655,-525.36358956,0.00010841,2]
[351791549,1738788674665,-500.0,0.00010841,2]
[351791550,1738788674675,-500.0,0.00010841,2]
[351791551,1738788674685,-600.53,0.00010841,2]
[351791552,1738788674695,-1000.0,0.00010841,2]
[351791553,1738788674705,-500.0,0.00010841,2]
[351791554,1738788674715,-500.0,0.00010841,2]